Workbook

Sheet ЗВЕДЕННЯ БЮДЖЕТУ
B2: Стислий звіт про бюджет | I2: =YEAR(TODAY()) -> 2019
B3: Назва компанії
B4: Сірі клітинки обчислюються автоматично. Зазвичай змінювати відомості в них не потрібно.
B5: Зведення прибутку й збитків | C5: Фактичний показник за травень | D5: Плановий показник за травень | E5: Місячне відхилення | F5: Фактичний показник за поточний рік | G5: Плановий показник за поточний рік | H5: Відхилення за поточний рік | I5: Нотатки
B6: Дохід | C6: 1,200,000.00₴ | D6: 1,100,000.00₴ | E6: =C6-D6 -> 100,000.00₴ | F6: 6,200,000.00₴ | G6: 6,000,000.00₴ | H6: =F6-G6 -> 200,000.00₴ | I6: Ми перевищили цільовий дохід за травень на 9% завдяки перевиконанню норми в західному регіоні.
B7: Валовий прибуток | C7: 150,000.00₴ | D7: 160,000.00₴ | E7: =C7-D7 -> -10,000.00₴ | F7: 640,000.00₴ | G7: 750,000.00₴ | H7: =F7-G7 -> -110,000.00₴
B8: Відсоток валового прибутку | C8: =IF(C6=0,0,C7/C6) -> 12.5% | D8: =IF(D6=0,0,D7/D6) -> 14.5% | E8: =C8-D8 -> -2.0% | F8: =IF(F6=0,0,F7/F6) -> 10.3% | G8: =IF(G6=0,0,G7/G6) -> 12.5% | H8: =F8-G8 -> -2.2%
B9: Продаж нових товарів | C9: 200,000.00₴ | D9: 150,000.00₴ | E9: =C9-D9 -> 50,000.00₴ | F9: 900,000.00₴ | G9: 750,000.00₴ | H9: =F9-G9 -> 150,000.00₴
B10: Збут за регіонами:
B11: Північно-східний регіон | C11: 400,000.00₴ | D11: 400,000.00₴ | E11: =C11-D11 -> 0.00₴ | F11: 2,200,000.00₴ | G11: 2,000,000.00₴ | H11: =F11-G11 -> 200,000.00₴
B12: Центральний регіон | C12: 400,000.00₴ | D12: 400,000.00₴ | E12: =C12-D12 -> 0.00₴ | F12: 2,400,000.00₴ | G12: 2,000,000.00₴ | H12: =F12-G12 -> 400,000.00₴
B13: Західний регіон | C13: 400,000.00₴ | D13: 300,000.00₴ | E13: =C13-D13 -> 100,000.00₴ | F13: 1,600,000.00₴ | G13: 2,000,000.00₴ | H13: =F13-G13 -> -400,000.00₴
B14: Витрати та прибуток:
B15: Адміністративні витрати | C15: 100,000.00₴ | D15: 120,000.00₴ | E15: =D15-C15 -> 20,000.00₴ | F15: 500,000.00₴ | G15: 600,000.00₴ | H15: =G15-F15 -> 100,000.00₴
B16: Операційний прибуток до вирахування податків (витрати) | C16: 50,000.00₴ | D16: 40,000.00₴ | E16: =C16-D16 -> 10,000.00₴ | F16: 140,000.00₴ | G16: 150,000.00₴ | H16: =F16-G16 -> -10,000.00₴
B17: Операційна рентабельність | C17: =IF(C6=0,0,C16/C6) -> 4% | D17: =IF(D6=0,0,D16/D6) -> 4% | E17: =C17-D17 -> 1% | F17: =IF(F6=0,0,F16/F6) -> 2% | G17: =IF(G6=0,0,G16/G6) -> 3% | H17: =F17-G17 -> -0%
B19: Зведення балансу | C19: Фактичний показник за травень | D19: Плановий показник за травень | E19: Місячне відхилення | F19: Фактичний показник за поточний рік | G19: Плановий показник за поточний рік | H19: Відхилення за поточний рік | I19: Нотатки
B20: Рух грошових коштів на кінець періоду | C20: 35,000.00₴ | D20: 50,000.00₴ | E20: =C20-D20 -> -15,000.00₴ | F20: 35,000.00₴ | G20: 50,000.00₴ | H20: =F20-G20 -> -15,000.00₴ | I20: Різниця в русі грошових коштів пов’язана з урегулюванням юридичного спору з іншою компанією 8 травня.
B21: Дебіторська заборгованість | C21: 20,000.00₴ | D21: 22,000.00₴ | E21: -2,000.00₴ | F21: 20,000.00₴ | G21: 22,000.00₴ | H21: -2,000.00₴
B22: Запаси | C22: 25,000.00₴ | D22: 30,000.00₴ | E22: -5,000.00₴ | F22: 25,000.00₴ | G22: 30,000.00₴ | H22: -5,000.00₴
B23: Загальні ліквідні активи | C23: 75,000.00₴ | D23: 90,000.00₴ | E23: -15,000.00₴ | F23: 75,000.00₴ | G23: 90,000.00₴ | H23: -15,000.00₴
B24: Зобов’язання щодо дотримання встановлених фінансових показників (активи) | C24: 25,000.00₴ | D24: 25,000.00₴ | E24: 0.00₴ | F24: 25,000.00₴ | G24: 25,000.00₴ | H24: 0.00₴
B25: Зобов’язання щодо дотримання встановлених фінансових показників (запас) | C25: =C23-C24 -> 50,000.00₴ | D25: =D23-D24 -> 65,000.00₴ | E25: -15,000.00₴ | F25: =F23-F24 -> 50,000.00₴ | G25: =G23-G24 -> 65,000.00₴ | H25: -15,000.00₴
B26: Інші позиції балансу:
B27: Майно, фабрики й обладнання | C27: 80,000.00₴ | D27: 78,000.00₴ | E27: =C27-D27 -> 2,000.00₴ | F27: 80,000.00₴ | G27: 78,000.00₴ | H27: =F27-G27 -> 2,000.00₴ | I27: Різниця пов’язана з придбанням нового верстата на заводі Б.
B28: Кредиторська заборгованість | C28: 60,000.00₴ | D28: 60,000.00₴ | E28: =D28-C28 -> 0.00₴ | F28: 60,000.00₴ | G28: 60,000.00₴ | H28: =F28-G28 -> 0.00₴
B29: Довгострокові зобов’язання | C29: 30,000.00₴ | D29: 31,000.00₴ | E29: =D29-C29 -> 1,000.00₴ | F29: 30,000.00₴ | G29: 31,000.00₴ | H29: =G29-F29 -> 1,000.00₴
B30: Акціонерний капітал | C30: 300,000.00₴ | D30: 297,500.00₴ | E30: =C30-D30 -> 2,500.00₴ | F30: 300,000.00₴ | G30: 297,500.00₴ | H30: =F30-G30 -> 2,500.00₴
B32: Зведення операційних показників | C32: Фактичний показник за травень | D32: Плановий показник за травень | E32: Місячне відхилення | F32: Фактичний показник за поточний рік | G32: Плановий показник за поточний рік | H32: Відхилення за поточний рік | I32: Нотатки
B33: Кількість дефектів на 1000 виготовлених деталей | C33: 2.3 | D33: 1.0 | E33: =D33-C33 -> -1.3 | F33: 1.5 | G33: 1.0 | H33: =F33-G33 -> 0.5 | I33: Проблеми з якістю виникли через неправильно нанесену на продукт фарбу на потоковій лінії 3. Директор ужив нових заходів контролю виявлення дефектів.
B34: Об’єм випуску – одиниць на місяць | C34: 200,000 | D34: 220,000 | E34: =C34-D34 -> -20,000 | F34: 1,100,000 | G34: 1,150,000 | H34: =F34-G34 -> -50,000
B35: Середній термін погашення дебіторської заборгованості в днях | C35: 35 | D35: 25 | E35: =D35-C35 -> -10 | F35: 33 | G35: 25 | H35: =G35-F35 -> -8
B36: Кількість нових замовлень | C36: 19 | D36: 15 | E36: =C36-D36 -> 4 | F36: 83 | G36: 75 | H36: =F36-G36 -> 8
B38: Зведення конкурентоспроможності | C38: Профіль компанії | D38: Конкурент 1 | E38: Конкурент 2 | F38: Конкурент 3 | G38: Конкурент 4 | H38: Інше | I38: Нотатки
B39: Частка ринку | C39: 20.00% | D39: 25.00% | E39: 15.00% | F39: 5.00% | G39: 15.00% | H39: 20.00% | I39: Показник присутності на ринку виріс через збільшення збуту нового товару.
B40: Дохід (за поточний рік) | C40: =F6 -> 6,200,000.00₴ | D40: 7,000,000.00₴ | E40: 4,000,000.00₴ | F40: 1,500,000.00₴ | G40: 4,000,000.00₴ | H40: 6,000,000.00₴
B41: Випуск нової продукції (за поточний рік) | C41: 900,000.00₴ | D41: 500,000.00₴ | E41: 0.00₴ | F41: 100,000.00₴ | G41: 500,000.00₴ | H41: 0.00₴
B42: Кількість торгових агентів (орієнтовна) | C42: 15 | D42: 20 | E42: 15 | F42: 10 | G42: 15 | H42: N/A

Sheet ДІАГРАМА ДОХОДІВ І ЗБИТКІВ
B2: ДІАГРАМА ЗВЕДЕННЯ ПРИБУТКУ Й ЗБИТКІВ | I2: ='ЗВЕДЕННЯ БЮДЖЕТУ'!I2 -> 2019
B3: ='ЗВЕДЕННЯ БЮДЖЕТУ'!B3 -> Назва компанії
B5: У цій клітинці наведено гістограму з фактичними та плановими показниками за місяць і рік.

Sheet ДІАГРАМА БАЛАНСУ
B2: ДІАГРАМА ЗВЕДЕННЯ БАЛАНСУ | I2: ='ЗВЕДЕННЯ БЮДЖЕТУ'!I2 -> 2019
B3: ='ЗВЕДЕННЯ БЮДЖЕТУ'!B3 -> Назва компанії
B5: У цій клітинці наведено гістограму з фактичними та плановими показниками за місяць.
